fUSD/lending_fUSD_20260519
["ID","MTS","AMOUNT","RATE_DAILY","PERIOD"]
[422591381,1779132638000,-150.0,0.00014285,2]
[422591415,1779132638000,-150.0,0.00014471,2]
[422591389,1779132638000,-150.0,0.00014336,2]
[422591416,1779132638000,-150.0,0.00014488,2]
[422591458,1779132638000,-150.0,0.00014606,2]
[422591465,1779132638000,-150.0,0.00014618,2]
[422591456,1779132638000,-4101.64692944,0.000146,2]
[422591463,1779132638000,-13818.07032308,0.00014614,2]
[422591467,1779132638000,-150.0,0.00014623,2]
[422591460,1779132638000,-150.0,0.00014606,2]
[422591469,1779132638000,-150.0,0.00014629,2]
[422591473,1779132638000,-150.0,0.00014639,2]
[422591471,1779132638000,-150.0,0.00014629,2]
[422591475,1779132638000,-150.0,0.0001464,2]
[422591479,1779132638000,-150.0,0.00014657,2]
[422591477,1779132638000,-470.17,0.00014644,2]
[422591481,1779132638000,-150.0,0.00014674,2]
[422591485,1779132638000,-150.0,0.00014683,2]
[422591483,1779132638000,-150.0,0.00014674,2]
[422591489,1779132638000,-150.0,0.00014698,2]
[422591494,1779132638000,-150.0,0.00014708,2]
[422591492,1779132638000,-736.0,0.000147,2]
[422591424,1779132638000,-7645.37,0.00014504,2]
[422591454,1779132638000,-150.0,0.00014589,2]
[422591448,1779132638000,-150.0,0.00014572,2]
[422591487,1779132638000,-150.0,0.00014691,2]
[422591450,1779132638000,-150.0,0.00014579,2]
[422591412,1779132638000,-150.0,0.00014463,2]
[422591452,1779132638000,-150.0,0.00014579,2]
[422591417,1779132638000,-150.0,0.00014489,2]
[422591419,1779132638000,-500.0,0.00014504,2]
[422591418,1779132638000,-470.17,0.00014503,2]
[422591421,1779132638000,-34895.25,0.00014504,2]
[422591422,1779132638000,-14129.03,0.00014504,2]
[422591425,1779132638000,-1370.74,0.00014504,2]
[422591426,1779132638000,-1578.74,0.00014504,2]
[422591420,1779132638000,-851.11,0.00014504,2]
[422591428,1779132638000,-150.0,0.00014505,2]
[422591432,1779132638000,-150.0,0.00014522,2]
[422591441,1779132638000,-150.0,0.00014546,2]
[422591430,1779132638000,-150.0,0.0001452,2]
[422591443,1779132638000,-150.0,0.00014553,2]
[422591434,1779132638000,-3899.3505703,0.00014532,2]
[422591439,1779132638000,-150.0,0.00014539,2]
[422591446,1779132638000,-150.0,0.00014556,2]
[422591427,1779132638000,-150.0,0.00014505,2]
[422591436,1779132638000,-150.0,0.00014539,2]
[422591580,1779132639000,-500.0,0.00014889,2]
[422591597,1779132639000,-1263.74,0.00014889,2]
[422591595,1779132639000,-1263.74,0.00014889,2]
[422591593,1779132639000,-1263.74,0.00014889,2]
[422591568,1779132639000,-200.0,0.0001488,2]
[422591574,1779132639000,-500.0,0.00014889,2]
[422591564,1779132639000,-150.0,0.00014877,2]
[422591576,1779132639000,-500.0,0.00014889,2]
[422591578,1779132639000,-500.0,0.00014889,2]
[422591562,1779132639000,-150.0,0.00014877,2]
[422591599,1779132639000,-1263.74,0.00014889,2]
[422591560,1779132639000,-150.0,0.00014877,2]
[422591570,1779132639000,-500.0,0.00014889,2]
[422591585,1779132639000,-500.0,0.00014889,2]
[422591611,1779132639000,-500.0,0.00014889,2]
[422591582,1779132639000,-500.0,0.00014889,2]
[422591590,1779132639000,-1263.74,0.00014889,2]
[422591586,1779132639000,-500.0,0.00014889,2]
[422591601,1779132639000,-500.0,0.00014889,2]
[422591605,1779132639000,-500.0,0.00014889,2]
[422591588,1779132639000,-500.0,0.00014889,2]
[422591619,1779132639000,-6770.80923414,0.000149,2]
[422591623,1779132639000,-1854.0,0.000149,5]
[422591621,1779132639000,-172.9083057,0.000149,2]
[422591625,1779132639000,-4101.64692944,0.000149,2]
[422591609,1779132639000,-500.0,0.00014889,2]
[422591615,1779132639000,-2000.0,0.00014899,2]
[422591627,1779132639000,-197.81098472,0.00014925,2]
[422591566,1779132639000,-150.0,0.00014877,2]
[422591603,1779132639000,-500.0,0.00014889,2]
[422591558,1779132639000,-150.0,0.00014877,2]
[422591502,1779132639000,-150.0,0.00014728,2]
[422591554,1779132639000,-150.0,0.00014877,2]
[422591613,1779132639000,-1145205.5197,0.0001489,2]
[422591496,1779132639000,-500.0,0.00014711,2]
[422591498,1779132639000,-150.0,0.00014711,2]
[422591500,1779132639000,-150.0,0.00014725,2]
[422591504,1779132639000,-150.0,0.00014741,2]
[422591506,1779132639000,-150.0,0.00014741,2]
[422591509,1779132639000,-150.0,0.00014747,2]
[422591511,1779132639000,-4101.64692944,0.0001475,2]
[422591513,1779132639000,-150.0,0.00014753,2]
[422591515,1779132639000,-150.0,0.00014758,2]
[422591520,1779132639000,-150.0,0.00014792,2]
[422591519,1779132639000,-150.0,0.00014775,2]
[422591522,1779132639000,-150.0,0.00014794,2]
[422591517,1779132639000,-150.0,0.00014758,2]
[422591524,1779132639000,-150.0,0.00014809,2]
[422591526,1779132639000,-150.0,0.00014809,2]
[422591528,1779132639000,-150.0,0.00014812,2]
[422591538,1779132639000,-470.17833181,0.00014844,2]
[422591540,1779132639000,-280.93772,0.0001485,2]
[422591542,1779132639000,-280.93772,0.0001485,2]
[422591544,1779132639000,-150.0,0.0001486,2]
[422591530,1779132639000,-150.0,0.00014817,2]
[422591546,1779132639000,-280.93772,0.0001486,2]
[422591536,1779132639000,-150.0,0.00014843,2]
[422591548,1779132639000,-159.97,0.00014869,2]
[422591534,1779132639000,-285.28537124,0.00014832,2]
[422591550,1779132639000,-150.00000001,0.00014877,2]
[422591532,1779132639000,-150.0,0.00014826,2]
[422591552,1779132639000,-150.0,0.00014877,2]
[422591556,1779132639000,-150.0,0.00014877,2]
[422591607,1779132639000,-500.0,0.00014889,2]
[422591572,1779132639000,-500.0,0.00014889,2]
[422591631,1779132639000,-500.0,0.00014989,2]
[422591710,1779132639000,-638.24,0.00014999,2]
[422591692,1779132639000,-662.27,0.00014999,2]
[422591698,1779132639000,-638.24,0.00014999,2]
[422591700,1779132639000,-638.24,0.00014999,2]
[422591706,1779132639000,-638.24,0.00014999,2]
[422591708,1779132639000,-638.24,0.00014999,2]
[422591712,1779132639000,-638.24,0.00014999,2]
[422591704,1779132639000,-638.24,0.00014999,2]
[422591714,1779132639000,-500.0,0.00014999,2]
[422591716,1779132639000,-500.0,0.00014999,2]
[422591718,1779132639000,-500.0,0.00014999,2]
[422591725,1779132639000,-573.0866294,0.00014999,2]
[422591723,1779132639000,-500.0,0.00014999,2]
[422591720,1779132639000,-500.0,0.00014999,2]
[422591738,1779132639000,-500.0,0.00014999,2]
[422591731,1779132639000,-500.0,0.00014999,2]
[422591736,1779132639000,-534.75180877,0.00014999,2]
[422591739,1779132639000,-500.0,0.00014999,2]
[422591727,1779132639000,-500.0,0.00014999,2]
[422591729,1779132639000,-500.0,0.00014999,2]
[422591734,1779132639000,-500.0,0.00014999,2]
[422591742,1779132639000,-500.0,0.00014999,2]
[422591744,1779132639000,-500.0,0.00014999,2]
[422591756,1779132639000,-500.0,0.00014999,2]
[422591746,1779132639000,-500.0,0.00014999,2]
[422591750,1779132639000,-500.0,0.00014999,2]
[422591759,1779132639000,-500.0,0.00014999,2]
[422591748,1779132639000,-500.0,0.00014999,2]
[422591761,1779132639000,-500.0,0.00014999,2]
[422591702,1779132639000,-638.24,0.00014999,2]
[422591696,1779132639000,-662.27,0.00014999,2]
[422591617,1779132639000,-13818.07032308,0.00014899,2]
[422591690,1779132639000,-662.27,0.00014999,2]
[422591694,1779132639000,-662.27,0.00014999,2]
[422591629,1779132639000,-161.62,0.00014985,2]
[422591633,1779132639000,-500.0,0.00014989,2]
[422591647,1779132639000,-500.0,0.00014998,2]
[422591635,1779132639000,-1263.74,0.00014989,2]
[422591651,1779132639000,-500.0,0.00014998,2]
[422591653,1779132639000,-500.0,0.00014998,2]
[422591655,1779132639000,-500.0,0.00014998,2]
[422591639,1779132639000,-662.27,0.00014998,2]
[422591641,1779132639000,-638.24,0.00014998,2]
[422591637,1779132639000,-151.0,0.00014997,2]
[422591657,1779132639000,-500.0,0.00014998,2]
[422591643,1779132639000,-500.0,0.00014998,2]
[422591645,1779132639000,-500.0,0.00014998,2]
[422591659,1779132639000,-500.0,0.00014998,2]
[422591649,1779132639000,-500.0,0.00014998,2]
[422591676,1779132639000,-500.0,0.00014998,2]
[422591686,1779132639000,-662.27,0.00014999,2]
[422591661,1779132639000,-500.0,0.00014998,2]
[422591688,1779132639000,-662.27,0.00014999,2]
[422591671,1779132639000,-500.0,0.00014998,2]
[422591680,1779132639000,-6971.2743953,0.00014999,2]
[422591667,1779132639000,-640.34,0.00014998,2]
[422591669,1779132639000,-500.0,0.00014998,2]
[422591684,1779132639000,-662.27,0.00014999,2]
[422591753,1779132639000,-500.0,0.00014999,2]
[422591682,1779132639000,-662.27,0.00014999,2]
[422591665,1779132639000,-500.0,0.00014998,2]
[422591663,1779132639000,-500.0,0.00014998,2]
[422591673,1779132639000,-500.0,0.00014998,2]
[422591678,1779132639000,-101299.9145045,0.00014999,2]
[422591796,1779132640000,-349.53370553,0.00014999,2]
[422591824,1779132640000,-500.0,0.00014999,2]
[422591800,1779132640000,-500.0,0.00014999,2]
[422591812,1779132640000,-504.19636444,0.00014999,2]
[422591806,1779132640000,-500.0,0.00014999,2]
[422591816,1779132640000,-500.0,0.00014999,2]
[422591818,1779132640000,-500.0,0.00014999,2]
[422591820,1779132640000,-500.0,0.00014999,2]
[422591826,1779132640000,-500.0,0.00014999,2]
[422591836,1779132640000,-500.0,0.00014999,2]
[422591830,1779132640000,-500.0,0.00014999,2]
[422591822,1779132640000,-500.0,0.00014999,2]
[422591832,1779132640000,-500.0,0.00014999,2]
[422591842,1779132640000,-500.0,0.00014999,2]
[422591846,1779132640000,-640.34,0.00014999,2]
[422591834,1779132640000,-500.0,0.00014999,2]
[422591838,1779132640000,-500.0,0.00014999,2]
[422591840,1779132640000,-500.0,0.00014999,2]
[422591801,1779132640000,-500.0,0.00014999,2]
[422591828,1779132640000,-500.0,0.00014999,2]
[422591810,1779132640000,-500.0,0.00014999,2]
[422591774,1779132640000,-208.7067028,0.00014999,2]
[422591808,1779132640000,-500.0,0.00014999,2]
[422591767,1779132640000,-500.0,0.00014999,2]
[422591766,1779132640000,-500.0,0.00014999,2]
[422591765,1779132640000,-500.0,0.00014999,2]
[422591768,1779132640000,-500.0,0.00014999,2]
[422591769,1779132640000,-602.92,0.00014999,2]
[422591771,1779132640000,-500.0,0.00014999,2]
[422591773,1779132640000,-500.0,0.00014999,2]
[422591844,1779132640000,-500.0,0.00014999,2]
[422591777,1779132640000,-527.38709912,0.00014999,2]
[422591803,1779132640000,-500.0,0.00014999,2]
[422591786,1779132640000,-500.0,0.00014999,2]
[422591780,1779132640000,-500.0,0.00014999,2]
[422591782,1779132640000,-500.0,0.00014999,2]
[422591788,1779132640000,-500.0,0.00014999,2]
[422591784,1779132640000,-500.0,0.00014999,2]
[422591790,1779132640000,-500.0,0.00014999,2]
[422591792,1779132640000,-500.0,0.00014999,2]
[422591794,1779132640000,-500.0,0.00014999,2]
[422591797,1779132640000,-500.0,0.00014999,2]
[422591814,1779132640000,-500.0,0.00014999,2]
[422591778,1779132640000,-500.0,0.00014999,2]
[422591850,1779132640000,-640.34,0.00014999,2]
[422591880,1779132640000,-500.0,0.00014999,2]
[422591854,1779132640000,-640.34,0.00014999,2]
[422591913,1779132640000,-500.0,0.00014999,2]
[422591915,1779132640000,-370.03132959,0.00014999,2]
[422591917,1779132640000,-500.0,0.00014999,2]
[422591900,1779132640000,-500.0,0.00014999,2]
[422591918,1779132640000,-500.0,0.00014999,2]
[422591763,1779132640000,-500.0,0.00014999,2]
[422591903,1779132640000,-500.0,0.00014999,2]
[422591907,1779132640000,-500.0,0.00014999,2]
[422591922,1779132640000,-1263.74,0.00014999,2]
[422591911,1779132640000,-500.0,0.00014999,2]
[422591905,1779132640000,-500.0,0.00014999,2]
[422591924,1779132640000,-1263.74,0.00014999,2]
[422591926,1779132640000,-1263.74,0.00014999,2]
[422591928,1779132640000,-1263.74,0.00014999,2]
[422591938,1779132640000,-321715.13223491,0.00015,2]
[422591934,1779132640000,-1263.82759521,0.00014999,2]
[422591932,1779132640000,-1263.74,0.00014999,2]
[422591942,1779132640000,-792.85111073,0.00015,2]
[422591930,1779132640000,-1263.74,0.00014999,2]
[422591936,1779132640000,-1828.0,0.00015,5]
[422591920,1779132640000,-582.6,0.00014999,2]
[422591852,1779132640000,-640.34,0.00014999,2]
[422591909,1779132640000,-500.0,0.00014999,2]
[422591896,1779132640000,-500.0,0.00014999,2]
[422591856,1779132640000,-640.34,0.00014999,2]
[422591868,1779132640000,-500.0,0.00014999,2]
[422591848,1779132640000,-640.34,0.00014999,2]
[422591864,1779132640000,-500.0,0.00014999,2]
[422591866,1779132640000,-500.0,0.00014999,2]
[422591860,1779132640000,-640.34,0.00014999,2]
[422591862,1779132640000,-500.0,0.00014999,2]
[422591858,1779132640000,-640.34,0.00014999,2]
[422591870,1779132640000,-500.0,0.00014999,2]
[422591898,1779132640000,-500.0,0.00014999,2]
[422591872,1779132640000,-500.0,0.00014999,2]
[422591888,1779132640000,-500.0,0.00014999,2]
[422591886,1779132640000,-500.0,0.00014999,2]
[422591882,1779132640000,-500.0,0.00014999,2]
[422591884,1779132640000,-500.0,0.00014999,2]
[422591874,1779132640000,-500.0,0.00014999,2]
[422591876,1779132640000,-500.0,0.00014999,2]
[422591878,1779132640000,-500.0,0.00014999,2]
[422591892,1779132640000,-500.0,0.00014999,2]
[422591894,1779132640000,-500.0,0.00014999,2]
[422591890,1779132640000,-500.0,0.00014999,2]
[422591902,1779132640000,-500.0,0.00014999,2]
[422592101,1779132641000,-150.0,0.00013597,2]
[422592104,1779132641000,-85932.86850928,0.00015,2]
[422592120,1779132642000,-474.50808334,0.00015,2]
[422592128,1779132642000,-1136.24390472,0.00015,2]
[422592113,1779132642000,-1352.03271722,0.00015,2]
[422592111,1779132642000,-1541.87684159,0.00015,2]
[422592211,1779132643000,-322.94797957,0.00015,2]
[422592210,1779132643000,-6988.08220382,0.00015,2]
[422592209,1779132643000,-7440.47940085,0.00015,2]
[422592208,1779132643000,-182.17873992,0.00015,2]
[422592207,1779132643000,-701.84885355,0.00015,2]
[422592488,1779132646000,-662119.98985278,0.00015,2]
[422592567,1779132877000,771.94881702,0.00030136,120]
[422592568,1779132937000,152.0,0.00010016,30]
[422592574,1779133343000,413.95,7.231e-05,2]
[422592573,1779133343000,413.95,6.913e-05,2]
[422592572,1779133343000,413.95,6.596e-05,2]
[422592571,1779133343000,413.95,6.279e-05,2]
[422592578,1779133344000,413.95,8.501e-05,2]
[422592577,1779133344000,413.95,8.183e-05,2]
[422592576,1779133344000,413.95,7.866e-05,2]
[422592575,1779133344000,413.95,7.548e-05,2]
[422592579,1779133345000,413.95,8.818e-05,2]
[422592580,1779133345000,413.95,9.136e-05,2]
[422592581,1779133345000,413.95,9.453e-05,2]
[422592582,1779133345000,413.95,9.771e-05,2]
[422592583,1779133739000,275.23971925,0.00012176,21]
[422592584,1779133740000,1000.0,0.00030135,120]
[422592586,1779133751000,-250.0,0.0001011,2]
[422592587,1779133751000,-360.96211746,0.00010133,2]
[422592585,1779133751000,-413.95,0.00010088,2]
[422592634,1779133832000,-307.07,0.00010935,2]
[422592626,1779133832000,-1200.0,0.00010568,2]
[422592631,1779133832000,-413.95,0.00010723,2]
[422592629,1779133832000,-150.0,0.00010604,2]
[422592633,1779133832000,-150.0,0.00010935,2]
[422592637,1779133832000,-150.0,0.00010959,2]
[422592641,1779133832000,-250.0,0.00011146,2]
[422592645,1779133832000,-413.95,0.00011358,2]
[422592648,1779133832000,-1680.0,0.00011625,2]
[422592632,1779133832000,-150.0,0.00010895,2]
[422592640,1779133832000,-250.0,0.00011097,2]
[422592650,1779133832000,-2000.0,0.00011703,2]
[422592649,1779133832000,-413.95,0.00011676,2]
[422592643,1779133832000,-176.55,0.00011233,2]
[422592638,1779133832000,-413.95,0.00011041,2]
[422592630,1779133832000,-159.0,0.00010705,2]
[422592614,1779133832000,-150.0,0.000102,2]
[422592635,1779133832000,-3461.43,0.00010935,2]
[422592612,1779133832000,-152.0,0.00010177,2]
[422592613,1779133832000,-250.0,0.00010179,2]
[422592639,1779133832000,-500.0,0.00011097,2]
[422592615,1779133832000,-150.0,0.00010301,2]
[422592618,1779133832000,-150.0,0.00010402,2]
[422592620,1779133832000,-413.95,0.00010406,2]
[422592617,1779133832000,-200.0,0.00010382,2]
[422592623,1779133832000,-302.57,0.00010477,2]
[422592616,1779133832000,-181.40591719,0.00010306,2]
[422592621,1779133832000,-161.38,0.00010408,2]
[422592622,1779133832000,-586.2,0.00010444,2]
[422592619,1779133832000,-2000.0,0.00010403,2]
[422592628,1779133832000,-160.0,0.00010582,2]
[422592636,1779133832000,-150.0,0.00010959,2]
[422592627,1779133832000,-1852.42,0.00010569,2]
[422592625,1779133832000,-150.0,0.00010503,2]
[422592647,1779133832000,-161.38,0.00011449,2]
[422592624,1779133832000,-1380.28,0.00010499,2]
[422592664,1779133832000,-307.07,0.00012302,2]
[422592674,1779133832000,-3714.07470898,0.00012791,2]
[422592680,1779133832000,-17897.36891978,0.00012793,2]
[422592671,1779133832000,-181.40591719,0.00012692,2]
[422592677,1779133832000,-3671.7282,0.00012793,2]
[422592676,1779133832000,-1000.0,0.00012792,2]
[422592684,1779133832000,-154.13188387,0.00012793,2]
[422592683,1779133832000,-2500.0,0.00012793,2]
[422592675,1779133832000,-34902.04845699,0.00012791,2]
[422592689,1779133832000,-500.0,0.00012892,2]
[422592687,1779133832000,-500.0,0.00012892,2]
[422592688,1779133832000,-474.10731056,0.00012892,2]
[422592690,1779133832000,-500.0,0.00012892,2]
[422592691,1779133832000,-500.0,0.00012892,2]
[422592692,1779133832000,-500.0,0.00012892,2]
[422592693,1779133832000,-500.0,0.00012892,2]
[422592652,1779133832000,-887.06,0.00011789,2]
[422592685,1779133832000,-58314.5614732,0.00012883,2]
[422592681,1779133832000,-406.27894006,0.00012793,2]
[422592686,1779133832000,-1793.73001951,0.00012891,2]
[422592679,1779133832000,-8213.63624577,0.00012793,2]
[422592653,1779133832000,-255.0,0.00011974,2]
[422592682,1779133832000,-58989.74094905,0.00012793,2]
[422592655,1779133832000,-413.95,0.00011993,2]
[422592657,1779133832000,-9999.99,0.00012087,2]
[422592663,1779133832000,-3222.11,0.00012087,2]
[422592660,1779133832000,-3258.59,0.00012087,2]
[422592666,1779133832000,-413.95,0.00012311,2]
[422592669,1779133832000,-161.38,0.0001249,2]
[422592670,1779133832000,-500.0,0.0001249,2]
[422592667,1779133832000,-177.69,0.00012329,2]
[422592678,1779133832000,-9738.68194534,0.00012793,2]
[422592661,1779133832000,-4999.99,0.00012087,2]
[422592658,1779133832000,-15778.53,0.00012087,2]
[422592673,1779133832000,-2351.0,0.00012788,2]
[422592659,1779133832000,-81138.56,0.00012087,2]
[422592672,1779133832000,-500.0,0.00012764,2]
[422592730,1779133833000,-500.0,0.00012892,2]
[422592728,1779133833000,-500.0,0.00012892,2]
[422592724,1779133833000,-500.0,0.00012892,2]
[422592732,1779133833000,-500.0,0.00012892,2]
[422592726,1779133833000,-500.0,0.00012892,2]
[422592723,1779133833000,-500.0,0.00012892,2]
[422592725,1779133833000,-500.0,0.00012892,2]
[422592727,1779133833000,-500.0,0.00012892,2]
[422592735,1779133833000,-500.0,0.00012892,2]
[422592721,1779133833000,-500.0,0.00012892,2]
[422592722,1779133833000,-500.0,0.00012892,2]
[422592745,1779133833000,-500.0,0.00012892,2]
[422592738,1779133833000,-500.0,0.00012892,2]
[422592740,1779133833000,-500.0,0.00012892,2]
[422592736,1779133833000,-500.0,0.00012892,2]
[422592734,1779133833000,-500.0,0.00012892,2]
[422592737,1779133833000,-500.0,0.00012892,2]
[422592746,1779133833000,-500.0,0.00012892,2]
[422592739,1779133833000,-500.0,0.00012892,2]
[422592743,1779133833000,-350.0,0.00012892,2]
[422592742,1779133833000,-500.0,0.00012892,2]
[422592744,1779133833000,-500.0,0.00012892,2]
[422592747,1779133833000,-500.0,0.00012892,2]
[422592733,1779133833000,-500.0,0.00012892,2]
[422592751,1779133833000,-500.0,0.00012892,2]
[422592741,1779133833000,-500.0,0.00012892,2]
[422592731,1779133833000,-500.0,0.00012892,2]
[422592701,1779133833000,-500.0,0.00012892,2]
[422592719,1779133833000,-500.0,0.00012892,2]
[422592749,1779133833000,-500.0,0.00012892,2]
[422592694,1779133833000,-500.0,0.00012892,2]
[422592695,1779133833000,-500.0,0.00012892,2]
[422592696,1779133833000,-500.0,0.00012892,2]
[422592698,1779133833000,-500.0,0.00012892,2]
[422592697,1779133833000,-500.0,0.00012892,2]
[422592699,1779133833000,-500.0,0.00012892,2]
[422592707,1779133833000,-500.0,0.00012892,2]
[422592703,1779133833000,-500.0,0.00012892,2]
[422592708,1779133833000,-500.0,0.00012892,2]
[422592704,1779133833000,-500.0,0.00012892,2]
[422592706,1779133833000,-500.0,0.00012892,2]
[422592702,1779133833000,-500.0,0.00012892,2]
[422592705,1779133833000,-500.0,0.00012892,2]
[422592710,1779133833000,-500.0,0.00012892,2]
[422592709,1779133833000,-500.0,0.00012892,2]
[422592720,1779133833000,-500.0,0.00012892,2]
[422592716,1779133833000,-500.0,0.00012892,2]
[422592714,1779133833000,-500.0,0.00012892,2]
[422592712,1779133833000,-500.0,0.00012892,2]
[422592711,1779133833000,-500.0,0.00012892,2]
[422592715,1779133833000,-360.27167286,0.00012892,2]
[422592713,1779133833000,-500.0,0.00012892,2]
[422592718,1779133833000,-500.0,0.00012892,2]
[422592717,1779133833000,-500.0,0.00012892,2]
[422592729,1779133833000,-500.0,0.00012892,2]
[422592750,1779133833000,-500.0,0.00012892,2]
[422592700,1779133833000,-500.0,0.00012892,2]
[422592752,1779133833000,-24999.99,0.00012893,2]
[422592782,1779133833000,-500.0,0.00013698,2]
[422592783,1779133833000,-500.0,0.00013698,2]
[422592784,1779133833000,-500.0,0.00013698,2]
[422592786,1779133833000,-500.0,0.00013698,2]
[422592787,1779133833000,-506.67968673,0.00013698,2]
[422592788,1779133833000,-589.11,0.00013698,2]
[422592790,1779133833000,-589.11,0.00013698,2]
[422592789,1779133833000,-589.11,0.00013698,2]
[422592799,1779133833000,-500.0,0.00013698,2]
[422592798,1779133833000,-500.0,0.00013698,2]
[422592791,1779133833000,-500.0,0.00013698,2]
[422592792,1779133833000,-310.93733253,0.00013698,2]
[422592785,1779133833000,-500.0,0.00013698,2]
[422592793,1779133833000,-500.0,0.00013698,2]
[422592794,1779133833000,-500.0,0.00013698,2]
[422592796,1779133833000,-500.0,0.00013698,2]
[422592797,1779133833000,-500.0,0.00013698,2]
[422592801,1779133833000,-500.0,0.00013698,2]
[422592802,1779133833000,-500.0,0.00013698,2]
[422592800,1779133833000,-369.00573565,0.00013698,2]
[422592808,1779133833000,-166.66,0.00013836,2]
[422592805,1779133833000,-166.66,0.00013699,2]
[422592807,1779133833000,-200.0,0.00013699,2]
[422592804,1779133833000,-500.0,0.00013698,2]
[422592803,1779133833000,-500.0,0.00013698,2]
[422592806,1779133833000,-2500.0,0.00013699,2]
[422592795,1779133833000,-500.0,0.00013698,2]
[422592781,1779133833000,-500.0,0.00013698,2]
[422592753,1779133833000,-299.99,0.00012893,2]
[422592778,1779133833000,-231.28528028,0.00013698,2]
[422592780,1779133833000,-500.0,0.00013698,2]
[422592748,1779133833000,-500.0,0.00012892,2]
[422592754,1779133833000,-29999.99,0.00012893,2]
[422592760,1779133833000,-3199.97,0.00013073,2]
[422592758,1779133833000,-2000.0,0.00013004,2]
[422592756,1779133833000,-29999.99,0.00012893,2]
[422592761,1779133833000,-166.66,0.00013089,2]
[422592765,1779133833000,-500.0,0.00013312,2]
[422592759,1779133833000,-500.0,0.00013038,2]
[422592764,1779133833000,-158.32,0.00013232,2]
[422592763,1779133833000,-10145.99175646,0.000132,2]
[422592762,1779133833000,-433.0,0.00013111,2]
[422592757,1779133833000,-500.0,0.00012991,2]
[422592755,1779133833000,-9999.99,0.00012893,2]
[422592766,1779133833000,-429.12,0.00013316,2]
[422592777,1779133833000,-500.0,0.00013698,2]
[422592767,1779133833000,-250.0,0.00013389,2]
[422592779,1779133833000,-500.0,0.00013698,2]
[422592776,1779133833000,-500.0,0.00013698,2]
[422592774,1779133833000,-150.0,0.00013679,2]
[422592775,1779133833000,-500.0,0.00013698,2]
[422592772,1779133833000,-150.0,0.00013619,2]
[422592770,1779133833000,-579.31519183,0.00013586,2]
[422592771,1779133833000,-4000.0,0.00013598,2]
[422592769,1779133833000,-161.38,0.00013531,2]
[422592768,1779133833000,-166.66,0.00013521,2]
[422592773,1779133833000,-307.07,0.00013669,2]
[422592847,1779133834000,-500.0,0.00014249,2]
[422592854,1779133834000,-589.11,0.00014249,2]
[422592849,1779133834000,-500.0,0.00014249,2]
[422592858,1779133834000,-589.11,0.00014249,2]
[422592856,1779133834000,-589.11,0.00014249,2]
[422592842,1779133834000,-500.0,0.00014249,2]
[422592846,1779133834000,-500.0,0.00014249,2]
[422592841,1779133834000,-539.16316336,0.00014249,2]
[422592839,1779133834000,-500.0,0.00014249,2]
[422592840,1779133834000,-500.0,0.00014249,2]
[422592848,1779133834000,-500.0,0.00014249,2]